Cogmind - Beta 13 *** ADVENTURER MODE // 2024.05.18 @ 20:48:46 // Winter2019/RPGLIKE Player: XorOwl Result: Destroyed by as-41647 with Assembled Blade Performance ------------- Evolutions (0) 0 Regions Visited (2) 400 Robots Destroyed (18) 90 Value Destroyed (376) 376 Prototype IDs (3) 60 Alien Tech Used (0) 0 Bonus (0) 0 TOTAL SCORE: 926 Bonus ------- None Cogmind --------- Core Integrity 0/600 Matter 290/300 Energy 171/250 System Corruption 3% Temperature Warning (313) Movement Treading (160) Location -10/Mines Parts ------- > --- POWER (1) -------- Ion Engine > --- PROPULSION (3) --- Light Treads > --- UTILITY (4) ------ Heat Sink Sensor Array Improved Terrain Scanner Seismic Detector > --- WEAPON (2) ------- Advanced Beam Cannon Advanced Beam Cannon > --- INVENTORY (1) ---- ECM Suite Peak State ------------ > --- POWER ------------ Ion Engine > --- PROPULSION ------- Light Treads Light Treads Light Treads > --- UTILITY ---------- Heat Sink Sensor Array Improved Terrain Scanner Seismic Detector > --- WEAPON ----------- Advanced Beam Cannon Advanced Beam Cannon > --- INVENTORY -------- (None) [Rating: 16] Favorites ----------- Power Ion Engine Engine Ion Engine Propulsion Light Treads Treads Light Treads Utility Seismic Detector Device Seismic Detector Weapon Advanced Beam Cannon Energy Cannon Advanced Beam Cannon Ballistic Gun Assault Rifle Ballistic Cannon Light Cannon Build | -11 -10 -10 ------- Run | Yrd Mat Min Slots Evolved 6 | 5 1 . Power . | . . . Propulsion 2 | 2 . . Utility 3 | 2 1 . Weapon 1 | 1 . . Parts Attached 15 | 8 7 . Power 1 | 1 . . Engine 1 | 1 . . Core . | . . . Reactor . | . . . Propulsion 4 | 2 2 . Treads 4 | 2 2 . Leg . | . . . Wheel . | . . . Hover . | . . . Flight . | . . . Utility 5 | 3 2 . Device 5 | 3 2 . Storage . | . . . Processor . | . . . Hackware . | . . . Protection . | . . . Artifact . | . . . Weapon 5 | 2 3 . Energy Gun . | . . . Energy Cannon 2 | . 2 . Ballistic Gun 2 | 2 . . Ballistic Cannon 1 | . 1 . Launcher . | . . . Special Weapon . | . . . Impact Weapon . | . . . Slashing Weapon . | . . . Piercing Weapon . | . . . Special Melee Weapon . | . . . Unidentified Prototypes 1 | . 1 . Parts Lost . | . . . Power . | . . . Propulsion . | . . . Utility . | . . . Weapon . | . . . Highest Loss Streak . | . . . To Critical Strikes . | . . . Average Slot Usage (%) 98 | . 99 95 Engine 10 | . 10 10 Treads 30 | . 30 25 Device 36 | . 36 40 Energy Cannon 20 | . 20 20 Naked Turns . | . . . Heaviest Build 17 | 11 17 . Greatest Support 60 | 40 60 . Greatest Overweight (x) 1 | 1 . . Average Overweight (x) . | . . . Largest Inventory Capacity 1 | . 1 1 Average Capacity . | . . 1 Most Carried 1 | . 1 1 Average Carried . | . . 1 Final Capacity 1 | . 1 1 Final Carried 1 | . 1 1 Class Distribution -------------------- 84% | Hacker-Skirmisher 15% | Hacker-Mutant Dominant Class ---------------- Hacker-Skirmisher | -10/Materials Hacker-Skirmisher | -10/Mines Resources | -11 -10 -10 ----------- Run | Yrd Mat Min Matter Collected 388 | 312 76 . Remotely 50 | 10 40 . Salvage Created 606 | 120 434 52 Parts 36 | 6 29 1 Haulers Intercepted 2 | . 2 . Recyclers Shooed . | . . . Parts Field Recycled . | . . . Retrieved Matter . | . . . Parts Self-Destructed . | . . . Prevented . | . . . Kills | -11 -10 -10 ------- Run | Yrd Mat Min Combat Hostiles Destroyed 13 | . 11 2 Cannons 12 | . 10 2 AOE 1 | . 1 . Classes Destroyed 8 | 2 5 1 Worker 1 | . 1 . Tunneler 1 | 1 . . Hauler 2 | . 2 . Recycler 1 | 1 . . Watcher 2 | . 2 . Swarmer 7 | . 7 . Grunt 4 | . 4 . Assembled 2 | . . 2 Best Kill Streak 6 | 2 6 2 Combat Bots Only 4 | . 4 2 Max Kills in Single Turn 2 | 1 2 1 Gunslinging . | . . . Exploded 1 | . 1 . Melee . | . . . Uniques/NPCs Destroyed . | . . . Combat | -11 -10 -10 -------- Run | Yrd Mat Min Hostile Shots Fired 116 | . 62 54 Missed 28 | . 15 13 Damage Taken 888 | . 357 531 Core 703 | . 279 424 Absorbed by Shields . | . . . Redirected to Core 604 | . 238 366 Ignored by Resistances 275 | . 116 159 Core Remaining (%) 100 | 100 . . Volleys Fired 65 | 8 50 7 Largest 2 | 2 2 2 Hottest 136 | 40 136 136 Shots Fired 130 | 16 101 13 Gun 16 | 16 . . Cannon 114 | . 101 13 Launcher . | . . . Special . | . . . Kinetic 16 | 16 . . Thermal 114 | . 101 13 Explosive . | . . . Electromagnetic . | . . . Robot Hit Streak 11 | 6 11 7 Robot Miss Streak 3 | 1 3 2 Penetration Max . | . . . Secondary Targets . | . . . Shots Hit Robots 59 | 11 39 9 Core Hits 21 | 3 16 2 Critical Kills . | . . . Critical Parts Destroyed . | . . . Critical Strikes . | . . . Melee Attacks . | . . . Impact . | . . . Slashing . | . . . Piercing . | . . . Sneak Attacks . | . . . Combat Hostiles . | . . . Follow-up Attacks . | . . . Damage Inflicted 1255 | 98 954 203 Guns 98 | 98 . . Cannons 1044 | . 841 203 Explosions 113 | . 113 . Melee . | . . . Ramming . | . . . Kinetic 98 | 98 . . Thermal 1157 | . 954 203 Explosive . | . . . Electromagnetic . | . . . Impact . | . . . Slashing . | . . . Piercing . | . . . Highest Corruption 3 | . 3 3 Average Corruption 2 | . 2 3 Corruption Purged . | . . . Corruption Blocked . | . . . Effects 11 | . 10 1 Matter Fused 2 | . 2 . Heat Flow Errors 2 | . 2 . Energy Discharges 3 | . 3 . Data Loss (minor) 1 | . 1 . Misfires 1 | . 1 . Alerts 1 | . 1 . Weapon Failures 1 | . . 1 Overload Shots . | . . . Overflow Damage 18 | . 14 4 Projectiles 18 | . 14 4 Explosions . | . . . Melee . | . . . Knockbacks . | . . . Impact . | . . . Kinetic . | . . . Secondary . | . . . Self-Inflicted Damage 60 | . 60 . Shots 1 | . 1 . Rammed . | . . . Targets Rammed . | . . . Kicked . | . . . Crushed . | . . . Highest Temperature 399 | . 399 273 Average Temperature 103 | . 101 122 Received Heat Transfer 280 | . 60 220 Effects 2 | . 2 . Energy Bleed 1 | . 1 . Damage (minor) 1 | . 1 . Siege Activations . | . . . Robots Corrupted . | . . . Combat Hostiles . | . . . Parts Fried . | . . . Impact Corruptions . | . . . Robots Melted . | . . . Combat Hostiles . | . . . Parts Melted 1 | . 1 . Heat Transferred 1937 | . 1567 370 Parts Sabotaged . | . . . Parts Stolen . | . . . Parts Stripped . | . . . Power Chain Reactions . | . . . Alert | -11 -10 -10 ------- Run | Yrd Mat Min Peak Influence 215 | 10 215 24 Initial 19 | . 5 19 Average 49 | 3 52 24 Maximum Alert Level 1 | . 1 . Low Security (%) 99 | 100 99 100 Level 1 . | . . . Level 2 . | . . . Level 3 . | . . . Level 4 . | . . . Level 5 . | . . . High Security . | . . . Max Security . | . . . Squads Dispatched 2 | . 2 . Investigation 2 | . 2 . Extermination . | . . . Reinforcement . | . . . Assault . | . . . Garrison . | . . . Intercept . | . . . Searches Triggered . | . . . Construction Impeded . | . . . Haulers Reinforced . | . . . Active Scanning Responses . | . . . Cargo Convoy Interrupts . | . . . Stealth | -11 -10 -10 --------- Run | Yrd Mat Min Distress Signals 1 | . 1 . Communications Jammed . | . . . Distress Signals . | . . . Times Spotted 36 | . 16 20 Peak Tracking Total 20 | . 7 20 Tactical Retreats . | . . . Traps | -11 -10 -10 ------- Run | Yrd Mat Min Traps Triggered 3 | . 3 . Indirectly . | . . . Trap Hack Attempts . | . . . Triggered . | . . . Disarmed 6 | . 6 . Reprogrammed . | . . . Reused . | . . . Traps Extracted . | . . . Installed . | . . . Triggered . | . . . Machines | -11 -10 -10 ---------- Run | Yrd Mat Min Machines Disabled 12 | . 12 . Max in Single Turn 2 | . 2 . Machines Repaired . | . . . Machines Dismantled . | . . . Machines Sabotaged . | . . . Overloaded Fab Kills . | . . . Hacking | -11 -10 -10 --------- Run | Yrd Mat Min Machines Accessed 9 | . 9 . Terminals 8 | . 8 . Fabricators . | . . . Repair Stations . | . . . Recycling Units 1 | . 1 . Scanalyzers . | . . . Garrison Access . | . . . Total Hacks 33 | . 33 . Successful 21 | . 21 . Failed 12 | . 12 . Catastrophic . | . . . Database Lockouts . | . . . Manual 19 | . 19 . Terminals 32 | . 32 . Fabricators . | . . . Repair Stations . | . . . Recycling Units 1 | . 1 . Scanalyzers . | . . . Garrison Access . | . . . Terminal Hacks 13 | . 13 . Record 1 | . 1 . Prototype ID Bank 1 | . 1 . Branch Access Points 1 | . 1 . Emergency Access Points 1 | . 1 . Terminal Index 1 | . 1 . Unreport Threat 1 | . 1 . Disarm Traps 1 | . 1 . Surveillance Status 1 | . 1 . Transport Status 1 | . 1 . Hauler Manifests 1 | . 1 . Registered Components 1 | . 1 . Zone Layout 2 | . 2 . Fabricator Hacks . | . . . Repair Station Hacks . | . . . Recycling Unit Hacks . | . . . Scanalyzer . | . . . Garrison Access Hacks . | . . . Unauthorized Hacks 8 | . 8 . Terminals 7 | . 7 . Botnet 7 | . 7 . Fabricators . | . . . Repair Stations . | . . . Recycling Units 1 | . 1 . Tunnel 1 | . 1 . Scanalyzers . | . . . Garrison Access . | . . . Data Cores Recovered . | . . . Used . | . . . Hacking Detections 8 | . 8 . Full Trace Events 2 | . 2 . Feedback Events . | . . . Feedback Blocked . | . . . Robot Schematics Acquired . | . . . Robots Built . | . . . Authchips . | . . . Time . | . . . Total Robot Build Rating . | . . . Part Schematics Acquired . | . . . Parts Built . | . . . Authchips . | . . . Time . | . . . Total Part Build Rating . | . . . Parts Repaired . | . . . Time . | . . . Parts Recycled . | . . . Recycled Matter . | . . . Retrieved Matter . | . . . Retrieved Components . | . . . Parts Scanalyzed . | . . . Part Schematics Acquired . | . . . Parts Damaged . | . . . Bothacking | -11 -10 -10 ------------ Run | Yrd Mat Min Used RIF Installer . | . . . Robots Hacked . | . . . Non-combat . | . . . Combat . | . . . Robot Hacks Applied . | . . . Relay Couplers Released . | . . . Fabnet Peak Effective % . | . . . Robots Rewired . | . . . Allies Hacked . | . . . Hacks Repelled . | . . . Allies | -11 -10 -10 -------- Run | Yrd Mat Min Total Allies . | . . . Largest Group . | . . . Highest-Rated Group . | . . . Highest-Rated Ally . | . . . Total Orders . | . . . Ally Attacks . | . . . Total Damage . | . . . Kills . | . . . Allies Corrupted . | . . . Allies Melted . | . . . Intel | -11 -10 -10 ------- Run | Yrd Mat Min Robot Analysis Total . | . . . Derelict Logs Recovered . | . . . Drone Launches . | . . . Drone Recoveries . | . . . Exploration | -11 -10 -10 ------------- Run | Yrd Mat Min Turns Passed 1436 | 99 1319 18 Spaces Moved 657 | 40 617 . Core 3 | 3 . . Treads 654 | 37 617 . Legs . | . . . Wheels . | . . . Hover . | . . . Flight . | . . . Fastest Speed 50 | 50 160 . Average Speed 159 | 153 160 . Slowest Speed 160 | 160 160 . Overloaded Moves . | . . . Propulsion Burnouts . | . . . Robots Hopped . | . . . Cave-ins Triggered . | . . . Exploration Rate (%) 36 | 4 95 9 Regions Visited 2 Branch Regions 1 Pre-discovered Areas 1 | . 1 . Known Exits Taken 1 | . 1 . Unknown Exits Taken 1 | 1 . . Scrap Searched . | . . . Spaces Dug . | . . . Terrain Destroyed 26 | . 26 . Melee . | . . . Projectile . | . . . AOE 26 | . 26 . Terrain Rammed . | . . . Walls Destroyed . | . . . Machines Disabled . | . . . Actions | -11 -10 -10 --------- Run | Yrd Mat Min Total 916 | 60 849 7 Wait 170 | 5 165 . Move 655 | 39 616 . Hop . | . . . Pick Up 1 | . 1 . Fast Attach 14 | 8 6 . Attach . | . . . Detach . | . . . Swap 1 | . 1 . Drop 5 | . 5 . Fire 65 | 8 50 7 Melee . | . . . Ram . | . . . Kick . | . . . Crush . | . . . Escape Stasis . | . . . Rewire . | . . . Trap . | . . . Miscellaneous 5 | . 5 . Route ------- -11/Scrapyard -10/Materials (discovered 5 exits: [*Mat x3] / *Min / [Sub]) -10/Mines History --------- Turn | Location | Event 1 | -11/Scrapyard | Upgraded with Propulsion slot (x2) 1 | -11/Scrapyard | Upgraded with Utility slot (x2) 1 | -11/Scrapyard | Upgraded with Weapon slot (x1) 2 | -11/Scrapyard | Met Revision 17 19 | -11/Scrapyard | Discovered new exit (range 15) 100 | -11/Scrapyard | Entered Materials 183 | -10/Materials | Discovered new exit (range 16) 268 | -10/Materials | Discovered new exit (range 16) 543 | -10/Materials | Build established: Hacker-Skirmisher 625 | -10/Materials | Discovered new exit (range 15) 755 | -10/Materials | Reached level 2 758 | -10/Materials | Upgraded with Utility slot (x1) 821 | -10/Materials | Discovered new exit (range 11) 1084 | -10/Materials | Identified exit to Mines 1131 | -10/Materials | Discovered new exit (range 7) 1419 | -10/Materials | Entered Mines 1420 | -10/Mines | Assembled infested the area 1432 | -10/Mines | Core integrity fell below 50% 1436 | -10/Mines | Core integrity fell below 20% 1437 | -10/Mines | Destroyed by as-41647 with Assembled Blade Last Messages --------------- 01351_ Connecting with Recycling Unit... >>Force(Tunnel) DISCOVERED[-3/Research] 01351_ ALERT: Suspicious activity at Recycling Unit M002. Dispatching Investigation squad. 01355_ K-01 Serf cleans the Nuclear Reactor. 01365_ G-34 Mercenary destroyed. 01407_ System corrupted: Matter fused (-10). LOCATION=MINES GOAL=ESCAPE 01419_ Destroyed Wheel. 01419_ T-07 Excavator destroyed. 01420_ ALERT: Infestation in the mines, dispatching Demolisher response squad. 01428_ Lgt. Treads severed. 01428_ as-77515 destroyed. 01433_ Lgt. Treads severed. 01434_ System corrupted: Adv. Beam Cannon failed to cycle. 01434_ as-97567 destroyed. 01437_ Destroyed Asb. Hover Unit. Map ----- +----------------------------------------------------+ | | | | | | | | | | | | | | | | | | | | | | | | | ??????????????????#???????????#??#???????????????? | | ?????????????????????????????????????????????????? | | ?????????????????#???#???????#???????????????????? | | ???????????????###?????#???##??####??#???????????? | | ?????????????### #????#?????## #?#??#??????????? | | ?????????????## #?????????# #???????????????? | | ?????????????# ##??????# = ???#?????????????? | | ?????????????# #????# #?? ??????????????? | | ?????????????# ! #??# #?? ? ???????????? | | ??????????????# !## ### #?????????????? | | ????????????##??# #????#????????? | | ?????????????????# ! ###??#???????????? | | ?????????????#????# aa ##??????#????????? | | ?????????????????###t =@aa ! #?#??#??????????? | | ???????????????#???## a%aa a #?#? ?????????? | | ????????????????????## aaa %! ??????????? | | ???????????#???#?????### aaa ####?????????? | | ?????????????#??????#?### a ##????????????? | | ??????????#?????##???#??##a ##?#???????????? | | ???????????#????#?#??#?#??aa r ##?????????????? | | ?????????????????????##??? ##???#??????????? | | ?????????????? ?? ???????# ####??????????????? | | ????????????????##???#?????## #????#????????????? | | ????????????????#??#?#?????#? #?????????????????? | | ?????????????????##?????????? #??#??????????????? | | ?????????????????????#?????#?? #?#???????????????? | | ????????????????#?????##?????? #?????????????????? | | ???????????????????#??#???? ? ???????????????????? | | ??????????????????????? ????????????????????????? | | ?????????????????????????????????????????????????? | | ?????????????????????????????????????????????????? | | ?????????????????????????????????????????????????? | | ?????????????????????????????????????????????????? | | ?????????????????????????????????????????????????? | | ?????????????????????????????????????????????????? | | ?????????????????????????????????????????????????? | | ?????????????????????????????????????????????????? | | ?????????????????????????????????????????????????? | +----------------------------------------------------+ Best States ------------- Heat Dissipation 41 Energy Generation 10 Energy Capacity 250 Matter Stores 300 Matter Capacity 300 Sight Range 16 Robot Scan Range 14 Terrain Scan Range 16 Terrain Scan Density 110 Resistance: KI 20 Resistance: TH 25 Resistance: EX 20 Resistance: EM 20 Resistance: I 20 Resistance: S 20 Resistance: P 20 Evasion (%) 40 Recoil Reduction 3 Offensive Hacking 20 Defensive Hacking 5 Item Schematics ----------------- None Robot Schematics ------------------ None Fabricated ------------ Nothing Alien Tech Used ----------------- None Achievements -------------- None Challenges ------------ None RPGLIKE | -11 -10 -10 --------- Run | Yrd Mat Min Levels Raised 1 | . 1 . XP Earned 6630 | 4000 2130 500 XP Spent 5500 | 4000 1500 . Upgrades 13 | 10 3 . Propulsion Slot 2 | 2 . . Utility Slot 3 | 2 1 . Weapon Slot 1 | 1 . . Heat Dissipation 1 | 1 . . Inventory Capacity 1 | . 1 . Terrain Scan Density 1 | 1 . . Hack Attack % 2 | 2 . . Hack Defense % 1 | 1 . . TH Resistance % 1 | . 1 . Protomatter Created 74 | . 61 13 Integrity Restored 102 | . 102 . Core 102 | . 102 . Protomatter Decayed 9 | . 9 . Game ------ Seed MicrowarpProcessingRouter Manual? 0 Play Time 00:18:33 Cumulative 240.0 hours Start 2024.05.18 @ 20:28:01 End 2024.05.18 @ 20:48:46 Sessions 1 Manual Loads 0 Difficulty Adventurer Special Mode Winter2019/RPGLIKE Game No. 53 Rogue 0 Adventurer 53 Explorer 0 Win Type - Total 4 Types 1/0/1/2/0/0/0/0/0 Lore% 57 Gallery% 63 Achievement% 60 Wizard Run 0 Options --------- Layout 0 ASCII 0 Keyboard 0 Movement Mouse Keybinds 0 Fullscreen 2 Font 18/SmallcapsGlow Map View 76x50 Zoom Use 3% Tactical HUD 1 Map Filters NONE Filters NONE Steam 1 RUN: 17017d07-132c-4397-b3d5-e7267c2f17f6